fUSD/lending_fUSD_20260107
["ID","MTS","AMOUNT","RATE_DAILY","PERIOD"]
[400695500,1767780656622,-512.17477995,0.00038356,14]
[400695501,1767780656631,-500.0,0.00038356,14]
[400695502,1767780656640,-500.0,0.00038356,14]
[400695503,1767780656650,-500.0,0.00038356,14]
[400695504,1767780656659,-420.78612512,0.00038356,14]
[400695505,1767780656668,-500.0,0.00038356,14]
[400695506,1767780656678,-500.0,0.00038356,14]
[400695507,1767780656687,-500.0,0.00038356,14]
[400695508,1767780656697,-2223.14,0.00038356,14]
[400695509,1767780656706,-500.0,0.00038356,14]
[400695510,1767780656715,-544.1,0.00038356,14]
[400695511,1767780656724,-500.0,0.00038356,14]
[400695512,1767780656733,-612.37,0.00038356,14]
[400695513,1767780656742,-500.0,0.00038356,14]
[400695514,1767780656751,-1188.27,0.00038356,14]
[400695515,1767780656761,-631.73427095,0.00038356,14]
[400695516,1767780656770,-513.76344781,0.00038356,14]
[400695517,1767780656778,-700.32,0.00038356,14]
[400695518,1767780656787,-500.0,0.00038356,14]
[400695519,1767780656797,-2124.24,0.00038356,14]
[400695520,1767780656806,-500.0,0.00038356,14]
[400695521,1767780656815,-500.0,0.00038356,14]
[400695522,1767780656824,-500.0,0.00038356,14]
[400695523,1767780656834,-1218.41,0.00038356,14]
[400695524,1767780656843,-818.35,0.00038356,14]
[400695525,1767780656855,-706.01,0.00038356,14]
[400695526,1767780656876,-505.29,0.00038356,14]
[400695527,1767780656886,-500.0,0.00038356,14]
[400695528,1767780656895,-500.0,0.00038356,14]
[400695529,1767780656905,-500.0,0.00038356,14]
[400695530,1767780656914,-542.685375,0.00038356,14]
[400695531,1767780656923,-500.0,0.00038356,14]
[400695532,1767780656933,-500.0,0.00038356,14]
[400695533,1767780656943,-500.0,0.00038356,14]
[400695534,1767780656952,-500.0,0.00038356,14]
[400695535,1767780656961,-500.0,0.00038356,14]
[400695536,1767780656971,-500.0,0.00038356,14]
[400695537,1767780656979,-585.51188155,0.00038356,14]
[400695538,1767780656989,-500.0,0.00038356,14]
[400695539,1767780656998,-500.0,0.00038356,14]
[400695540,1767780657007,-500.0,0.00038356,14]
[400695541,1767780657017,-563.84,0.00038356,14]
[400695542,1767780657026,-1273.78,0.00038356,14]
[400695543,1767780657035,-500.0,0.00038356,14]
[400695544,1767780657044,-1669.49,0.00038356,14]
[400695545,1767780657054,-500.0,0.00038356,14]
[400695546,1767780657063,-500.0,0.00038356,14]
[400695547,1767780657072,-500.0,0.00038356,14]
[400695548,1767780657081,-500.0,0.00038356,14]
[400695549,1767780657091,-573.65,0.00038356,14]
[400695550,1767780657101,-500.0,0.00038356,14]
[400695551,1767780657111,-500.0,0.00038356,14]
[400695552,1767780657120,-514.65,0.00038356,14]
[400695553,1767780657129,-500.0,0.00038356,14]
[400695554,1767780657139,-500.0,0.00038356,14]
[400695555,1767780657149,-1302.45,0.00038356,14]
[400695556,1767780657159,-500.0,0.00038356,14]
[400695557,1767780657169,-1660.18,0.00038356,14]
[400695558,1767780657179,-821.41,0.00038356,14]
[400695559,1767780657189,-500.0,0.00038356,14]
[400695560,1767780657199,-500.0,0.00038356,14]
[400695561,1767780657209,-500.0,0.00038356,14]
[400695562,1767780657218,-754.5,0.00038356,14]
[400695563,1767780657228,-812.59,0.00038356,14]
[400695564,1767780657237,-500.0,0.00038356,14]
[400695565,1767780657247,-974.78,0.00038356,14]
[400695566,1767780657257,-500.0,0.00038356,14]
[400695567,1767780657266,-523.87784496,0.00038356,14]
[400695568,1767780657275,-648.67,0.00038356,14]
[400695569,1767780657285,-500.0,0.00038356,14]
[400695570,1767780657295,-500.0,0.00038356,14]
[400695571,1767780657304,-500.0,0.00038356,14]
[400695572,1767780657313,-500.0,0.00038356,14]
[400695573,1767780657323,-500.0,0.00038356,14]
[400695574,1767780657332,-518.67473519,0.00038356,14]
[400695575,1767780657342,-500.0,0.00038356,14]
[400695576,1767780657351,-500.0,0.00038356,14]
[400695577,1767780657361,-500.0,0.00038356,14]
[400695578,1767780657370,-2304.75,0.00038356,14]
[400695579,1767780657379,-500.0,0.00038356,14]
[400695580,1767780657389,-500.0,0.00038356,14]
[400695581,1767780657398,-500.0,0.00038356,14]
[400695582,1767780657408,-500.0,0.00038356,14]
[400695583,1767780657418,-500.0,0.00038356,14]
[400695584,1767780657428,-266.65316096,0.00038356,2]
[400695585,1767780657442,-1888.77,0.00038356,14]
[400695586,1767780657451,-500.0,0.00038356,14]
[400695587,1767780657462,-500.0,0.00038356,14]
[400695588,1767780657471,-642.09,0.00038356,14]
[400695589,1767780657483,-620.22,0.00038356,14]
[400695590,1767780657493,-500.0,0.00038356,14]
[400695591,1767780657503,-500.0,0.00038356,14]
[400695592,1767780657513,-500.0,0.00038356,14]
[400695593,1767780657525,-500.0,0.00038356,14]
[400695594,1767780657535,-500.0,0.00038356,14]
[400695595,1767780657545,-536.14182895,0.00038356,14]
[400695596,1767780657554,-652.57,0.00038356,14]
[400695597,1767780657565,-500.0,0.00038356,14]
[400695598,1767780657574,-500.0,0.00038356,14]
[400695599,1767780657584,-763.21,0.00038356,14]
[400695600,1767780657593,-500.0,0.00038356,14]
[400695601,1767780657603,-1353.54,0.00038356,14]
[400695602,1767780657613,-500.0,0.00038356,14]
[400695603,1767780657622,-500.0,0.00038356,14]
[400695604,1767780657632,-500.0,0.00038356,14]
[400695605,1767780657642,-500.0,0.00038356,14]
[400695606,1767780657652,-821.52,0.00038356,14]
[400695607,1767780657662,-500.0,0.00038356,14]
[400695608,1767780657672,-1042.57,0.00038356,14]
[400695609,1767780657681,-500.0,0.00038356,14]
[400695610,1767780657691,-500.0,0.00038356,14]
[400695611,1767780657700,-638.01900718,0.00038356,14]
[400695612,1767780657710,-500.0,0.00038356,14]
[400695613,1767780657720,-1372.32,0.00038356,14]
[400695614,1767780657729,-500.0,0.00038356,14]
[400695615,1767780657739,-500.0,0.00038356,14]
[400695616,1767780657749,-760.54,0.00038356,14]
[400695617,1767780657759,-500.0,0.00038356,14]
[400695618,1767780657769,-500.0,0.00038356,14]
[400695619,1767780657779,-500.0,0.00038356,14]
[400695620,1767780657791,-1285.83,0.00038356,14]
[400695621,1767780657801,-500.0,0.00038356,14]
[400695622,1767780657811,-500.0,0.00038356,14]
[400695623,1767780657822,-2433.04,0.00038356,14]
[400695624,1767780657834,-500.0,0.00038356,14]
[400695625,1767780657844,-673.42,0.00038356,14]
[400695626,1767780657853,-699.14,0.00038356,14]
[400695627,1767780657863,-500.0,0.00038356,14]
[400695628,1767780657873,-500.0,0.00038356,14]
[400695629,1767780657883,-2645.68,0.00038356,14]
[400695630,1767780657893,-500.0,0.00038356,14]
[400695631,1767780657903,-515.98197735,0.00038356,14]
[400695632,1767780657912,-234.24541788,0.00038356,14]
[400695633,1767780657922,-925.03,0.00038356,14]
[400695634,1767780657934,-500.0,0.00038356,14]
[400695635,1767780657944,-641.10097803,0.00038356,14]
[400695636,1767780657953,-500.0,0.00038356,14]
[400695637,1767780657963,-500.0,0.00038356,14]
[400695638,1767780657974,-1421.08,0.00038356,14]
[400695639,1767780657984,-522.1845283,0.00038356,14]
[400695640,1767780657994,-500.0,0.00038356,14]
[400695641,1767780658005,-971.84,0.00038356,14]
[400695642,1767780658015,-540.0822,0.00038356,14]
[400695643,1767780658026,-500.0,0.00038356,14]
[400695644,1767780658036,-500.0,0.00038356,14]
[400695645,1767780658046,-500.0,0.00038356,14]
[400695646,1767780658058,-505.84,0.00038356,14]
[400695647,1767780658068,-500.0,0.00038356,14]
[400695648,1767780658079,-500.0,0.00038356,14]
[400695649,1767780658091,-500.0,0.00038356,14]
[400695650,1767780658101,-500.0,0.00038356,14]
[400695651,1767780658112,-500.0,0.00038356,14]
[400695652,1767780658123,-639.6,0.00038356,14]
[400695653,1767780658133,-500.0,0.00038356,14]
[400695654,1767780658143,-500.0,0.00038356,14]
[400695655,1767780658153,-948.27,0.00038356,14]
[400695656,1767780658163,-500.0,0.00038356,14]
[400695657,1767780658172,-1146.48,0.00038356,14]
[400695658,1767780658182,-924.78,0.00038356,14]
[400695659,1767780658192,-519.49,0.00038356,14]
[400695660,1767780658202,-500.0,0.00038356,14]
[400695661,1767780658212,-506.62,0.00038356,14]
[400695662,1767780658222,-500.0,0.00038356,14]
[400695663,1767780658232,-500.0,0.00038356,14]
[400695664,1767780658242,-500.0,0.00038356,14]
[400695665,1767780658251,-500.0,0.00038356,14]
[400695666,1767780658261,-500.0,0.00038356,14]
[400695667,1767780658271,-500.0,0.00038356,14]
[400695668,1767780658281,-500.0,0.00038356,14]
[400695669,1767780658290,-1392.78,0.00038356,14]
[400695670,1767780658300,-500.0,0.00038356,14]
[400695671,1767780658310,-500.0,0.00038356,14]
[400695672,1767780658320,-500.0,0.00038356,14]
[400695673,1767780658329,-500.0,0.00038356,14]
[400695674,1767780658339,-1045.17,0.00038356,14]
[400695675,1767780658349,-500.0,0.00038356,14]
[400695676,1767780658359,-847.9,0.00038356,14]
[400695677,1767780658369,-500.0,0.00038356,14]
[400695678,1767780658378,-500.0,0.00038356,14]
[400695679,1767780658387,-1812.63,0.00038356,14]
[400695680,1767780658397,-500.0,0.00038356,14]
[400695681,1767780658407,-500.0,0.00038356,14]
[400695682,1767780658417,-511.76697962,0.00038356,14]
[400695683,1767780658427,-500.0,0.00038356,14]
[400695684,1767780658440,-500.0,0.00038356,14]
[400695685,1767780658450,-500.0,0.00038356,14]
[400695686,1767780658460,-500.92733017,0.00038356,14]
[400695687,1767780658470,-6399.15,0.00038356,14]
[400695688,1767780658484,-500.0,0.00038356,14]
[400695689,1767780658494,-500.0,0.00038356,14]
[400695690,1767780658504,-500.0,0.00038356,14]
[400695691,1767780658515,-3507.96,0.00038356,14]
[400695692,1767780658527,-500.0,0.00038356,14]
[400695693,1767780658537,-500.0,0.00038356,14]
[400695694,1767780658547,-500.0,0.00038356,14]
[400695695,1767780658557,-500.0,0.00038356,14]
[400695696,1767780658566,-500.0,0.00038356,14]
[400695697,1767780658576,-500.0,0.00038356,14]
[400695698,1767780658586,-500.0,0.00038356,14]
[400695699,1767780658596,-752.91,0.00038356,14]
[400695700,1767780658606,-500.0,0.00038356,14]
[400695701,1767780658616,-500.0,0.00038356,14]
[400695702,1767780658626,-500.0,0.00038356,14]
[400695703,1767780658637,-500.0,0.00038356,14]
[400695704,1767780658647,-500.0,0.00038356,14]
[400695705,1767780658657,-500.0,0.00038356,5]
[400695706,1767780658667,-500.0,0.00038356,14]
[400695707,1767780658677,-500.0,0.00038356,14]
[400695708,1767780658687,-500.0,0.00038356,14]
[400695709,1767780658696,-554.25,0.00038356,14]
[400695710,1767780658707,-768.99,0.00038356,14]
[400695711,1767780658716,-875.39,0.00038356,14]
[400695712,1767780658726,-2204.58,0.00038356,14]
[400695713,1767780658736,-869.33,0.00038356,14]
[400695714,1767780658746,-500.0,0.00038356,14]
[400695715,1767780658755,-500.0,0.00038356,14]
[400695716,1767780658765,-500.0,0.00038356,14]
[400695717,1767780658775,-500.0,0.00038356,14]
[400695718,1767780658784,-500.0,0.00038356,14]
[400695719,1767780658794,-500.0,0.00038356,14]
[400695720,1767780658804,-989.35,0.00038356,14]
[400695721,1767780658814,-500.0,0.00038356,14]
[400695722,1767780658823,-500.0,0.00038356,14]
[400695723,1767780658833,-500.0,0.00038356,14]
[400695724,1767780658843,-500.0,0.00038356,14]
[400695725,1767780658852,-500.0,0.00038356,14]
[400695726,1767780658862,-500.0,0.00038356,14]
[400695727,1767780658872,-500.0,0.00038356,14]
[400695728,1767780658882,-500.0,0.00038356,14]
[400695729,1767780658891,-500.0,0.00038356,14]
[400695730,1767780658900,-1333.98,0.00038356,14]
[400695731,1767780658910,-508.25,0.00038356,14]
[400695732,1767780658919,-587.70115427,0.00038356,14]
[400695733,1767780658929,-500.0,0.00038356,14]
[400695734,1767780658939,-1575.18,0.00038356,14]
[400695735,1767780658949,-500.0,0.00038356,14]
[400695736,1767780658959,-511.55378199,0.00038356,14]
[400695737,1767780658969,-614.2,0.00038356,14]
[400695738,1767780658980,-500.0,0.00038356,14]
[400695739,1767780659260,-500.0,0.00038356,14]
[400695740,1767780659277,-500.0,0.00038356,14]
[400695741,1767780659287,-500.0,0.00038356,14]
[400695742,1767780659296,-500.0,0.00038356,14]
[400695743,1767780659305,-569.23,0.00038356,14]
[400695744,1767780659314,-500.0,0.00038356,14]
[400695745,1767780659323,-500.0,0.00038356,14]
[400695746,1767780659332,-500.0,0.00038356,14]
[400695747,1767780659342,-500.0,0.00038356,14]
[400695748,1767780659351,-2882.32,0.00038356,14]
[400695749,1767780659360,-1121.23,0.00038356,14]
[400695750,1767780659370,-500.0,0.00038356,14]
[400695751,1767780659379,-549.35300061,0.00038356,14]
[400695752,1767780659389,-518.03815747,0.00038356,14]
[400695753,1767780659399,-500.0,0.00038356,14]
[400695754,1767780659410,-500.0,0.00038356,14]
[400695755,1767780659419,-500.0,0.00038356,14]
[400695756,1767780659429,-500.0,0.00038356,14]
[400695757,1767780659441,-563.47,0.00038356,14]
[400695758,1767780659452,-500.0,0.00038356,14]
[400695759,1767780659462,-633.731261,0.00038356,14]
[400695760,1767780659471,-1423.77,0.00038356,14]
[400695761,1767780659481,-500.0,0.00038356,14]
[400695762,1767780659491,-500.0,0.00038356,14]
[400695763,1767780659500,-558.44,0.00038356,14]
[400695764,1767780659512,-500.0,0.00038356,14]
[400695765,1767780659522,-500.0,0.00038356,14]
[400695766,1767780659533,-500.0,0.00038356,14]
[400695767,1767780659543,-500.0,0.00038356,14]
[400695768,1767780659552,-500.0,0.00038356,14]
[400695769,1767780659562,-501.50156513,0.00038356,14]
[400695770,1767780659571,-500.0,0.00038356,14]
[400695771,1767780659581,-521.41752696,0.00038356,14]
[400695772,1767780659591,-500.0,0.00038356,14]
[400695773,1767780659600,-624.89,0.00038356,14]
[400695774,1767780659610,-500.0,0.00038356,14]
[400695775,1767780659620,-500.0,0.00038356,14]
[400695776,1767780659629,-1274.49,0.00038356,14]
[400695777,1767780659639,-535.10637465,0.00038356,14]
[400695778,1767780659648,-500.0,0.00038356,14]
[400695779,1767780659658,-500.0,0.00038356,14]
[400695780,1767780659667,-500.0,0.00038356,14]
[400695781,1767780659677,-500.0,0.00038356,14]
[400695782,1767780659686,-959.81,0.00038356,14]
[400695783,1767780659695,-500.0,0.00038356,14]
[400695784,1767780659705,-500.0,0.00038356,14]
[400695785,1767780659715,-500.0,0.00038356,2]
[400695786,1767780659724,-500.0,0.00038356,14]
[400695787,1767780659733,-500.0,0.00038356,14]
[400695788,1767780659743,-500.0,0.00038356,14]
[400695789,1767780659752,-500.0,0.00038356,14]
[400695790,1767780659762,-500.0,0.00038356,14]
[400695791,1767780659772,-590.83,0.00038356,14]
[400695792,1767780659781,-910.56,0.00038356,14]
[400695793,1767780659791,-500.0,0.00038356,14]
[400695794,1767780659800,-769.19,0.00038356,14]
[400695795,1767780659809,-500.0,0.00038356,14]
[400695796,1767780659819,-500.0,0.00038356,14]
[400695797,1767780659828,-1874.58,0.00038356,14]
[400695798,1767780659837,-500.0,0.00038356,14]
[400695799,1767780659846,-500.0,0.00038356,14]
[400695800,1767780659855,-500.0,0.00038356,14]
[400695801,1767780659865,-500.0,0.00038356,14]
[400695802,1767780659874,-500.0,0.00038356,2]
[400695803,1767780659883,-500.0,0.00038356,14]
[400695804,1767780659895,-500.0,0.00038356,14]
[400695805,1767780659905,-897.13,0.00038356,14]
[400695806,1767780659914,-500.0,0.00038356,14]
[400695807,1767780659923,-500.0,0.00038356,14]
[400695808,1767780659933,-743.41,0.00038356,14]
[400695809,1767780659943,-500.0,0.00038356,14]
[400695810,1767780659953,-500.0,0.00038356,14]
[400695811,1767780659963,-3198.64,0.00038356,14]
[400695812,1767780659972,-500.0,0.00038356,14]
[400695813,1767780659982,-500.0,0.00038356,14]
[400695814,1767780659991,-500.0,0.00038356,14]
[400695815,1767780660001,-500.0,0.00038356,14]
[400695816,1767780660011,-500.0,0.00038356,14]
[400695817,1767780660021,-500.0,0.00038356,14]
[400695818,1767780660030,-504.64,0.00038356,14]
[400695819,1767780660040,-1515.73,0.00038356,14]
[400695820,1767780660050,-500.0,0.00038356,14]
[400695821,1767780660060,-1372.02,0.00038356,14]
[400695822,1767780660069,-522.6,0.00038356,14]
[400695823,1767780660079,-1265.45,0.00038356,14]
[400695824,1767780660088,-500.0,0.00038356,14]
[400695825,1767780660097,-1704.38,0.00038356,14]
[400695826,1767780660107,-500.0,0.00038356,14]
[400695827,1767780660121,-500.0,0.00038356,14]
[400695828,1767780660142,-503.36,0.00038356,14]
[400695829,1767780660155,-1765.19,0.00038356,14]
[400695830,1767780660165,-674.76,0.00038356,14]
[400695831,1767780660174,-500.0,0.00038356,14]
[400695832,1767780660184,-500.0,0.00038356,14]
[400695833,1767780660195,-500.0,0.00038356,14]
[400695834,1767780660204,-843.83,0.00038356,14]
[400695835,1767780660213,-1706.97,0.00038356,14]
[400695836,1767780660223,-500.0,0.00038356,14]
[400695837,1767780660232,-500.0,0.00038356,14]
[400695838,1767780660241,-799.48,0.00038356,2]
[400695839,1767780660250,-844.15,0.00038356,14]
[400695840,1767780660260,-940.72,0.00038356,14]
[400695841,1767780660269,-500.0,0.00038356,14]
[400695842,1767780660279,-529.15833437,0.00038356,14]
[400695843,1767780660288,-912.95,0.00038356,14]
[400695844,1767780660297,-500.0,0.00038356,14]
[400695845,1767780660306,-152.59454791,0.00038356,14]
[400695846,1767780660316,-500.0,0.00038356,14]
[400695847,1767780660325,-500.0,0.00038356,14]
[400695848,1767780660334,-500.0,0.00038356,14]
[400695849,1767780660343,-1469.97,0.00038356,14]
[400695850,1767780660352,-677.99,0.00038356,14]
[400695851,1767780660361,-3542.99,0.00038356,14]
[400695852,1767780660371,-912.56,0.00038356,14]
[400695853,1767780660379,-500.0,0.00038356,14]
[400695854,1767780660391,-500.0,0.00038356,14]
[400695855,1767780660400,-500.0,0.00038356,14]
[400695856,1767780660411,-500.0,0.00038356,14]
[400695857,1767780660422,-963.65,0.00038356,14]
[400695858,1767780660432,-470.00897931,0.00038356,14]
[400695859,1767780660445,-714.54,0.00038356,14]
[400695860,1767780660455,-500.0,0.00038356,14]
[400695861,1767780660464,-500.0,0.00038356,14]
[400695862,1767780660473,-500.0,0.00038356,14]
[400695863,1767780660484,-500.0,0.00038356,14]
[400695864,1767780660494,-157.73007098,0.00038356,14]
[400695865,1767780660503,-500.0,0.00038356,14]
[400695866,1767780660515,-647.93075554,0.00038356,14]
[400695867,1767780660526,-500.0,0.00038356,5]
[400695868,1767780660535,-500.0,0.00038356,14]
[400695869,1767780660545,-500.0,0.00038356,14]
[400695870,1767780660555,-500.0,0.00038356,14]
[400695871,1767780660565,-1805.36,0.00038356,14]
[400695872,1767780660574,-500.0,0.00038356,14]
[400695873,1767780660584,-500.0,0.00038356,14]
[400695874,1767780660594,-500.0,0.00038356,14]
[400695875,1767780660603,-500.0,0.00038356,14]
[400695876,1767780660614,-500.0,0.00038356,14]
[400695877,1767780660623,-1458.71,0.00038356,14]
[400695878,1767780660633,-500.0,0.00038356,2]
[400695879,1767780660642,-976.72,0.00038356,14]
[400695880,1767780660651,-500.0,0.00038356,14]
[400695881,1767780660660,-500.0,0.00038356,14]
[400695882,1767780660669,-768.9,0.00038356,14]
[400695883,1767780660678,-721.89,0.00038356,14]
[400695884,1767780660689,-500.0,0.00038356,14]
[400695885,1767780660699,-500.0,0.00038356,14]
[400695886,1767780660708,-641.18,0.00038356,14]
[400695887,1767780660717,-512.58952846,0.00038356,14]
[400695888,1767780660727,-500.0,0.00038356,14]
[400695889,1767780660736,-500.0,0.00038356,14]
[400695890,1767780660745,-527.38067353,0.00038356,14]
[400695891,1767780660754,-500.0,0.00038356,14]
[400695892,1767780660763,-1733.11,0.00038356,14]
[400695893,1767780660772,-500.0,0.00038356,14]
[400695894,1767780660781,-500.0,0.00038356,14]
[400695895,1767780660790,-500.0,0.00038356,14]
[400695896,1767780660799,-500.0,0.00038356,14]
[400695897,1767780660808,-500.0,0.00038356,14]
[400695898,1767780660817,-500.0,0.00038356,14]
[400695899,1767780660826,-500.0,0.00038356,14]
[400695900,1767780660835,-500.0,0.00038356,14]
[400695901,1767780660845,-500.0,0.00038356,14]
[400695902,1767780660854,-500.0,0.00038356,14]
[400695903,1767780660863,-531.86429308,0.00038356,14]
[400695904,1767780660872,-500.0,0.00038356,14]
[400695905,1767780660881,-500.0,0.00038356,14]
[400695906,1767780660890,-609.90300466,0.00038356,14]
[400695907,1767780660899,-500.0,0.00038356,14]
[400695908,1767780660909,-500.0,0.00038356,14]
[400695909,1767780660918,-500.0,0.00038356,14]
[400695910,1767780660927,-500.0,0.00038356,14]
[400695911,1767780660936,-500.0,0.00038356,14]
[400695912,1767780660945,-500.0,0.00038356,14]
[400695913,1767780660955,-500.0,0.00038356,14]
[400695914,1767780660963,-1172.73,0.00038356,14]
[400695915,1767780660972,-500.0,0.00038356,14]
[400695916,1767780660982,-500.0,0.00038356,14]
[400695917,1767780660991,-500.0,0.00038356,14]
[400695918,1767780661000,-500.0,0.00038356,14]
[400695919,1767780661009,-838.97,0.00038356,14]
[400695920,1767780661017,-1169.83,0.00038356,14]
[400695921,1767780661027,-500.0,0.00038356,14]
[400695922,1767780661037,-500.0,0.00038356,14]
[400695923,1767780661046,-500.0,0.00038356,14]
[400695924,1767780661055,-500.0,0.00038356,14]
[400695925,1767780661065,-500.0,0.00038356,14]
[400695926,1767780661074,-500.0,0.00038356,14]
[400695927,1767780661083,-500.0,0.00038356,14]
[400695928,1767780661093,-500.0,0.00038356,14]
[400695929,1767780661103,-822.93,0.00038356,14]
[400695930,1767780661111,-500.0,0.00038356,14]
[400695931,1767780661120,-500.0,0.00038356,14]
[400695932,1767780661130,-707.99,0.00038356,14]
[400695933,1767780661139,-500.0,0.00038356,14]
[400695934,1767780661148,-500.0,0.00038356,14]
[400695935,1767780661158,-500.0,0.00038356,14]
[400695936,1767780661167,-500.0,0.00038356,14]
[400695937,1767780661177,-500.0,0.00038356,14]
[400695938,1767780661186,-538.47209136,0.00038356,14]
[400695939,1767780661196,-500.0,0.00038356,14]
[400695940,1767780661206,-1361.45,0.00038356,14]
[400695941,1767780661215,-525.79,0.00038356,5]
[400695942,1767780661225,-500.0,0.00038356,3]
[400695943,1767780661234,-500.0,0.00038356,14]
[400695944,1767780661243,-500.0,0.00038356,14]
[400695945,1767780661252,-500.0,0.00038356,14]
[400695946,1767780661261,-500.0,0.00038356,14]
[400695947,1767780661271,-500.0,0.00038356,14]
[400695948,1767780661280,-206.61116019,0.00038356,14]
[400695949,1767780661289,-1075.27,0.00038356,14]
[400695950,1767780661298,-1014.97,0.00038356,14]
[400695951,1767780661307,-716.44,0.00038356,14]
[400695952,1767780661317,-1134.1,0.00038356,14]
[400695953,1767780661326,-500.0,0.00038356,14]
[400695954,1767780661335,-300.0,0.00038356,2]
[400695955,1767780661344,-507.87978057,0.00038356,14]
[400695956,1767780661354,-500.0,0.00038356,14]
[400695957,1767780661363,-677.46,0.00038356,14]
[400695958,1767780661371,-500.0,0.00038356,14]
[400695959,1767780661380,-1048.51,0.00038356,14]
[400695960,1767780661389,-521.27536029,0.00038356,14]
[400695961,1767780661398,-500.0,0.00038356,14]
[400695962,1767780661407,-500.0,0.00038356,14]
[400695963,1767780661417,-500.0,0.00038356,14]
[400695964,1767780661427,-500.0,0.00038356,14]
[400695965,1767780661440,-930.94,0.00038356,14]
[400695966,1767780661450,-500.0,0.00038356,14]
[400695967,1767780661459,-500.0,0.00038356,14]
[400695968,1767780661468,-1278.39,0.00038356,14]
[400695969,1767780661479,-618.46,0.00038356,14]
[400695970,1767780661488,-500.0,0.00038356,14]
[400695971,1767780661499,-500.0,0.00038356,14]
[400695972,1767780661512,-500.0,0.00038356,14]
[400695973,1767780661522,-1390.73,0.00038356,14]
[400695974,1767780661531,-511.96312861,0.00038356,14]
[400695975,1767780661541,-500.0,0.00038356,14]
[400695976,1767780661550,-500.0,0.00038356,14]
[400695977,1767780661669,-1017.36,0.00038356,14]
[400695978,1767780661678,-500.0,0.00038356,14]
[400695979,1767780661688,-1081.89,0.00038356,14]
[400695980,1767780661697,-1045.81,0.00038356,14]
[400695981,1767780661706,-500.0,0.00038356,14]
[400695982,1767780661715,-500.0,0.00038356,14]
[400695983,1767780661724,-576.39,0.00038356,14]
[400695984,1767780661733,-1496.42,0.00038356,14]
[400695985,1767780661742,-500.0,0.00038356,14]
[400695986,1767780661751,-500.0,0.00038356,14]
[400695987,1767780661760,-541.12,0.00038356,14]
[400695988,1767780661769,-1258.96,0.00038356,14]
[400695989,1767780661778,-530.45911547,0.00038356,14]
[400695990,1767780661787,-500.0,0.00038356,14]
[400695991,1767780661795,-500.0,0.00038356,14]
[400695992,1767780661804,-500.0,0.00038356,14]
[400695993,1767780661813,-500.0,0.00038356,14]
[400695994,1767780661823,-382.51729372,0.00038356,14]
[400695995,1767780661831,-500.0,0.00038356,14]
[400695996,1767780661841,-511.53,0.00038356,14]
[400695997,1767780661849,-500.0,0.00038356,14]
[400695998,1767780661858,-500.0,0.00038356,14]
[400695999,1767780661867,-824.48,0.00038356,14]